fUST/lending_fUST_20250417
["ID","MTS","AMOUNT","RATE_DAILY","PERIOD"]
[358285621,1744896645882,-500.0,0.00021917,2]
[358285622,1744896645891,-500.32567652,0.00021917,2]
[358285623,1744896645901,-516.00467806,0.00021917,2]
[358285624,1744896645911,-500.0,0.00021917,2]
[358285625,1744896645921,-500.71630372,0.00021917,2]
[358285626,1744896645930,-500.0,0.00021917,2]
[358285627,1744896645940,-1066.98,0.00021917,2]
[358285628,1744896645950,-500.0,0.00021917,2]
[358285629,1744896645960,-598.24,0.00021917,2]
[358285630,1744896645970,-500.0,0.00021917,2]
[358285631,1744896645979,-500.0,0.00021917,2]
[358285632,1744896645989,-500.31818009,0.00021917,2]
[358285633,1744896645999,-500.0,0.00021917,2]
[358285634,1744896646009,-500.0,0.00021917,2]
[358285635,1744896646019,-737.82,0.00021917,2]
[358285636,1744896646030,-500.0,0.00021917,2]
[358285637,1744896646040,-500.0,0.00021917,2]
[358285638,1744896646050,-500.0,0.00021917,2]
[358285639,1744896646060,-511.62,0.00021917,2]
[358285640,1744896646070,-500.0,0.00021917,2]
[358285641,1744896646080,-1474.37,0.00021917,2]
[358285642,1744896646090,-580.05,0.00021917,2]
[358285643,1744896646100,-500.0,0.00021917,2]
[358285644,1744896646110,-646.32394151,0.00021917,2]
[358285645,1744896646120,-500.0,0.00021917,2]
[358285646,1744896646131,-500.0,0.00021917,2]
[358285647,1744896646140,-500.0,0.00021917,2]
[358285648,1744896646150,-370.87206751,0.00021917,2]
[358285650,1744896646159,-500.0,0.00021917,2]
[358285651,1744896646169,-500.0,0.00021917,2]
[358285652,1744896646179,-500.0,0.00021917,2]
[358285653,1744896646190,-500.23344795,0.00021917,2]
[358285654,1744896646200,-502.46811463,0.00021917,2]
[358285655,1744896646210,-500.0,0.00021917,2]
[358285656,1744896646220,-500.5879933,0.00021917,2]
[358285657,1744896646229,-500.74524798,0.00021917,2]
[358285658,1744896646239,-1356.61,0.00021917,2]
[358285659,1744896646248,-977.99,0.00021917,2]
[358285660,1744896646258,-500.59001842,0.00021917,2]
[358285661,1744896646267,-500.0,0.00021917,2]
[358285662,1744896646277,-847.99,0.00021917,2]
[358285663,1744896646286,-500.0,0.00021917,2]
[358285664,1744896646296,-501.39071162,0.00021917,2]
[358285665,1744896646307,-500.0,0.00021917,2]
[358285666,1744896646317,-500.0,0.00021917,2]
[358285667,1744896646327,-500.0,0.00021917,2]
[358285668,1744896646337,-500.0,0.00021917,2]
[358285669,1744896646346,-500.22223757,0.00021917,2]
[358285670,1744896646357,-549.37,0.00021917,2]
[358285671,1744896646367,-241.60166002,0.00021917,2]
[358285673,1744896646376,-511.62954063,0.00021917,2]
[358285675,1744896646386,-500.0,0.00021917,2]
[358285676,1744896646395,-500.0,0.00021917,2]
[358285677,1744896646405,-500.0,0.00021917,2]
[358285678,1744896646415,-501.96239816,0.00021917,2]
[358285679,1744896646425,-578.33,0.00021917,2]
[358285680,1744896646434,-500.0,0.00021917,2]
[358285682,1744896646444,-1004.18,0.00021917,2]
[358285683,1744896646454,-500.0,0.00021917,2]
[358285684,1744896646463,-558.97,0.00021917,2]
[358285685,1744896646473,-500.0,0.00021917,2]
[358285686,1744896646482,-500.0,0.00021917,2]
[358285687,1744896646492,-500.0,0.00021917,2]
[358285688,1744896646502,-500.0,0.00021917,2]
[358285689,1744896646512,-500.0,0.00021917,2]
[358285690,1744896646523,-500.0,0.00021917,2]
[358285691,1744896646533,-500.94395493,0.00021917,2]
[358285692,1744896646543,-577.64,0.00021917,2]
[358285693,1744896646554,-500.0,0.00021917,2]
[358285694,1744896646565,-500.0,0.00021917,2]
[358285695,1744896646575,-243.91137169,0.00021917,2]
[358285696,1744896646586,-500.0,0.00021917,2]
[358285697,1744896646596,-500.0,0.00021917,2]
[358285698,1744896646607,-500.0,0.00021917,2]
[358285699,1744896646617,-1139.2,0.00021917,2]
[358285700,1744896646626,-500.0,0.00021917,2]
[358285701,1744896646636,-500.41495799,0.00021917,2]
[358285702,1744896646646,-297.80856761,0.00021917,2]
[358285703,1744896646656,-566.76,0.00021917,2]
[358285704,1744896646666,-500.7898413,0.00021917,2]
[358285705,1744896646676,-500.0,0.00021917,2]
[358285706,1744896646686,-500.0,0.00021917,2]
[358285707,1744896646695,-500.0,0.00021917,2]
[358285708,1744896646705,-299.74369289,0.00021917,2]
[358285709,1744896646714,-815.52,0.00021917,2]
[358285710,1744896646724,-500.0,0.00021917,2]
[358285711,1744896646733,-514.54277386,0.00021917,2]
[358285712,1744896646743,-500.0,0.00021917,2]
[358285713,1744896646752,-500.0,0.00021917,2]
[358285714,1744896646762,-151.0,0.00021917,2]
[358285715,1744896646772,-500.0,0.00021917,2]
[358285716,1744896646781,-609.18,0.00021917,2]
[358285717,1744896646791,-531.62,0.00021917,2]
[358285718,1744896646801,-500.0,0.00021917,2]
[358285719,1744896646811,-290.50513642,0.00021917,2]
[358285720,1744896646822,-500.0,0.00021917,2]
[358285721,1744896646832,-500.0,0.00021917,2]
[358285722,1744896646842,-1923.82,0.00021917,2]
[358285723,1744896646851,-500.0,0.00021917,2]
[358285724,1744896646862,-500.93162012,0.00021917,2]
[358285725,1744896646872,-1249.52,0.00021917,2]
[358285726,1744896646882,-500.0,0.00021917,2]
[358285727,1744896646892,-500.0,0.00021917,2]
[358285728,1744896646902,-500.0,0.00021917,2]
[358285729,1744896646912,-500.0,0.00021917,2]
[358285730,1744896646922,-500.0,0.00021917,2]
[358285731,1744896646932,-500.0,0.00021917,2]
[358285732,1744896646942,-500.58988045,0.00021917,2]
[358285733,1744896646953,-500.49113782,0.00021917,2]
[358285734,1744896646963,-500.0,0.00021917,2]
[358285735,1744896646972,-500.0,0.00021917,2]
[358285736,1744896646982,-966.17,0.00021917,2]
[358285737,1744896646992,-500.0,0.00021917,2]
[358285738,1744896647002,-500.0,0.00021917,2]
[358285739,1744896647012,-1934.65,0.00021917,2]
[358285740,1744896647022,-500.0,0.00021917,2]
[358285741,1744896647031,-501.37533784,0.00021917,2]
[358285742,1744896647041,-500.0,0.00021917,2]
[358285743,1744896647050,-297.11735079,0.00021917,2]
[358285744,1744896647061,-500.0,0.00021917,2]
[358285745,1744896647071,-500.0,0.00021917,2]
[358285746,1744896647081,-500.0,0.00021917,2]
[358285747,1744896647090,-1701.51,0.00021917,2]
[358285748,1744896647100,-500.85822087,0.00021917,2]
[358285749,1744896647110,-500.0,0.00021917,2]
[358285750,1744896647120,-500.0,0.00021917,2]
[358285751,1744896647130,-501.40589659,0.00021917,2]
[358285752,1744896647140,-620.83,0.00021917,2]
[358285753,1744896647150,-490.9001361,0.00021917,2]
[358285755,1744896647159,-610.11,0.00021917,2]
[358285757,1744896647168,-500.43388983,0.00021917,2]
[358285759,1744896647178,-500.0,0.00021917,2]
[358285761,1744896647188,-500.0,0.00021917,2]
[358285763,1744896647198,-341.57,0.00021917,2]
[358285765,1744896647207,-500.0,0.00021917,2]
[358285767,1744896647216,-501.13107521,0.00021917,2]
[358285769,1744896647226,-500.0,0.00021917,2]
[358285771,1744896647236,-500.0,0.00021917,2]
[358285773,1744896647247,-500.0,0.00021917,2]
[358285775,1744896647256,-500.0,0.00021917,2]
[358285777,1744896647266,-500.0,0.00021917,2]
[358285779,1744896647275,-500.0,0.00021917,2]
[358285781,1744896647284,-500.0,0.00021917,2]
[358285783,1744896647293,-534.66,0.00021917,2]
[358285785,1744896647305,-500.0,0.00021917,2]
[358285787,1744896647316,-500.0,0.00021917,2]
[358285789,1744896647326,-534.43,0.00021917,2]
[358285791,1744896647335,-1427.16,0.00021917,2]
[358285793,1744896647344,-655.09,0.00021917,2]
[358285795,1744896647355,-500.0,0.00021917,2]
[358285797,1744896647364,-503.11975479,0.00021917,2]
[358285800,1744896647374,-590.21,0.00021917,2]
[358285802,1744896647383,-500.0,0.00021917,2]
[358285804,1744896647394,-500.0,0.00021917,2]
[358285806,1744896647404,-500.0,0.00021917,2]
[358285808,1744896647413,-500.0,0.00021917,2]
[358285809,1744896647423,-548.51,0.00021917,2]
[358285810,1744896647432,-500.0,0.00021917,2]
[358285811,1744896647441,-500.0,0.00021917,2]
[358285812,1744896647450,-500.0,0.00021917,2]
[358285813,1744896647459,-500.0,0.00021917,2]
[358285814,1744896647468,-500.0,0.00021917,2]
[358285815,1744896647477,-500.0,0.00021917,2]
[358285816,1744896647487,-500.0,0.00021917,2]
[358285817,1744896647496,-621.34,0.00021917,2]
[358285818,1744896647506,-500.0,0.00021917,2]
[358285819,1744896647516,-797.19,0.00021917,2]
[358285821,1744896647526,-500.0,0.00021917,2]
[358285823,1744896647536,-500.0,0.00021917,2]
[358285825,1744896647546,-500.0,0.00021917,2]
[358285827,1744896647555,-500.0,0.00021917,2]
[358285829,1744896647565,-500.0,0.00021917,2]
[358285831,1744896647575,-500.0,0.00021917,2]
[358285833,1744896647585,-500.0,0.00021917,2]
[358285835,1744896647595,-1618.85,0.00021917,2]
[358285837,1744896647607,-539.5,0.00021917,2]
[358285839,1744896647616,-500.0,0.00021917,2]
[358285841,1744896647626,-709.59,0.00021917,2]
[358285843,1744896647635,-500.0,0.00021917,2]
[358285845,1744896647644,-3813.56,0.00021917,2]
[358285851,1744896647700,-701.7,0.00021917,2]
[358285853,1744896647710,-500.0,0.00021917,2]
[358285855,1744896647720,-878.3,0.00021917,2]
[358285857,1744896647730,-1249.57,0.00021917,2]
[358285859,1744896647739,-682.47,0.00021917,2]
[358285861,1744896647749,-500.0,0.00021917,2]
[358285863,1744896647758,-565.15,0.00021917,2]
[358285865,1744896647769,-500.0,0.00021917,2]
[358285867,1744896647779,-500.0,0.00021917,2]
[358285869,1744896647789,-500.0,0.00021917,2]
[358285871,1744896647798,-500.0,0.00021917,2]
[358285874,1744896647808,-516.5107498,0.00021917,2]
[358285876,1744896647819,-902.52,0.00021917,2]
[358285878,1744896647828,-500.86774665,0.00021917,2]
[358285879,1744896647838,-500.0,0.00021917,2]
[358285882,1744896647848,-500.87252416,0.00021917,2]
[358285884,1744896647860,-695.55,0.00021917,2]
[358285885,1744896647869,-155.93229057,0.00021917,2]
[358285888,1744896647879,-839.31,0.00021917,2]
[358285890,1744896647888,-501.17510211,0.00021917,2]
[358285892,1744896647898,-500.0,0.00021917,2]
[358285894,1744896647908,-600.76713997,0.00021917,2]
[358285895,1744896647917,-514.46,0.00021917,2]
[358285897,1744896647927,-815.95,0.00021917,2]
[358285899,1744896647936,-500.0,0.00021917,2]
[358285901,1744896647946,-500.0,0.00021917,2]
[358285903,1744896647956,-500.0,0.00021917,2]
[358285905,1744896647966,-630.11,0.00021917,2]
[358285907,1744896647975,-500.0,0.00021917,2]
[358285909,1744896647985,-500.0,0.00021917,2]
[358285911,1744896647994,-500.0,0.00021917,2]
[358285914,1744896648004,-500.0,0.00021917,2]
[358285916,1744896648014,-500.0,0.00021917,2]
[358285917,1744896648023,-500.0,0.00021917,2]
[358285920,1744896648033,-500.0,0.00021917,2]
[358285921,1744896648043,-500.0,0.00021917,2]
[358285923,1744896648053,-500.77781907,0.00021917,2]
[358285925,1744896648063,-1162.06,0.00021917,2]
[358285927,1744896648073,-500.0,0.00021917,2]
[358285929,1744896648082,-500.0,0.00021917,2]
[358285931,1744896648092,-522.06,0.00021917,2]
[358285933,1744896648102,-500.0,0.00021917,2]
[358285935,1744896648111,-1029.26,0.00021917,2]
[358285937,1744896648121,-500.0,0.00021917,2]
[358285939,1744896648132,-500.0,0.00021917,2]
[358285941,1744896648142,-500.0,0.00021917,2]
[358285943,1744896648151,-500.0,0.00021917,2]
[358285945,1744896648161,-500.0,0.00021917,2]
[358285947,1744896648171,-500.0,0.00021917,2]
[358285949,1744896648181,-500.0,0.00021917,2]
[358285952,1744896648195,-1186.47,0.00021917,2]
[358285954,1744896648205,-500.62559164,0.00021917,2]
[358285956,1744896648215,-500.0,0.00021917,2]
[358285958,1744896648224,-500.0,0.00021917,2]
[358285960,1744896648234,-942.48,0.00021917,2]
[358285962,1744896648243,-529.48197077,0.00021917,2]
[358285964,1744896648253,-500.0,0.00021917,2]
[358285966,1744896648262,-500.5552848,0.00021917,2]
[358285968,1744896648272,-503.09861014,0.00021917,2]
[358285970,1744896648281,-500.40888934,0.00021917,2]
[358285972,1744896648291,-500.0,0.00021917,2]
[358285974,1744896648303,-432.62457983,0.00021917,2]
[358285976,1744896648317,-567.38,0.00021917,2]
[358285978,1744896648327,-500.0,0.00021917,2]
[358285980,1744896648336,-500.0,0.00021917,2]
[358285982,1744896648347,-500.40017076,0.00021917,2]
[358285984,1744896648358,-500.0,0.00021917,2]
[358285986,1744896648368,-500.0,0.00021917,2]
[358285988,1744896648378,-500.0,0.00021917,2]
[358285990,1744896648388,-950.49,0.00021917,2]
[358285992,1744896648398,-500.97881703,0.00021917,2]
[358285994,1744896648407,-676.1,0.00021917,2]
[358285996,1744896648417,-500.0,0.00021917,2]
[358285998,1744896648427,-500.0,0.00021917,2]
[358286000,1744896648437,-613.33,0.00021917,2]
[358286002,1744896648447,-330.08699408,0.00021917,2]
[358286004,1744896648456,-500.0,0.00021917,2]
[358286006,1744896648466,-500.0,0.00021917,2]
[358286008,1744896648477,-500.0,0.00021917,2]
[358286010,1744896648486,-1037.17,0.00021917,2]
[358286012,1744896648495,-500.61471924,0.00021917,2]
[358286014,1744896648506,-500.0,0.00021917,2]
[358286016,1744896648518,-500.0,0.00021917,2]
[358286019,1744896648527,-947.49,0.00021917,2]
[358286021,1744896648537,-500.0,0.00021917,2]
[358286023,1744896648547,-500.0,0.00021917,2]
[358286025,1744896648556,-500.0,0.00021917,2]
[358286027,1744896648566,-1615.98,0.00021917,2]
[358286029,1744896648575,-500.0,0.00021917,2]
[358286031,1744896648584,-1085.26,0.00021917,2]
[358286033,1744896648594,-500.0,0.00021917,2]
[358286035,1744896648604,-4860.33,0.00021917,2]
[358286037,1744896648614,-817.97,0.00021917,2]
[358286039,1744896648623,-500.0,0.00021917,2]
[358286041,1744896648633,-500.0,0.00021917,2]
[358286043,1744896648643,-500.0,0.00021917,2]
[358286045,1744896648654,-852.66,0.00021917,2]
[358286047,1744896648664,-1082.53,0.00021917,2]
[358286049,1744896648674,-500.0,0.00021917,2]
[358286051,1744896648684,-500.0,0.00021917,2]
[358286053,1744896648693,-500.0,0.00021917,2]
[358286055,1744896648703,-500.0,0.00021917,2]
[358286057,1744896648713,-500.0,0.00021917,2]
[358286059,1744896648723,-500.4439316,0.00021917,2]
[358286061,1744896648732,-1133.17,0.00021917,2]
[358286063,1744896648742,-500.0,0.00021917,2]
[358286065,1744896648751,-502.79199288,0.00021917,2]
[358286067,1744896648762,-500.0,0.00021917,2]
[358286069,1744896648773,-499.78427034,0.00021917,2]
[358286071,1744896648783,-500.0,0.00021917,2]
[358286073,1744896648793,-500.0,0.00021917,2]
[358286075,1744896648803,-151.0,0.00021917,2]
[358286077,1744896648813,-660.57,0.00021917,2]
[358286080,1744896648823,-1157.41,0.00021917,2]
[358286082,1744896648832,-500.0,0.00021917,2]
[358286084,1744896648842,-500.0,0.00021917,2]
[358286086,1744896648852,-500.0,0.00021917,2]
[358286088,1744896648862,-500.0,0.00021917,2]
[358286090,1744896648872,-513.07,0.00021917,2]
[358286092,1744896648882,-500.0,0.00021917,2]
[358286094,1744896648892,-500.0,0.00021917,2]
[358286096,1744896648902,-500.0,0.00021917,2]
[358286098,1744896648912,-621.99,0.00021917,2]
[358286100,1744896648922,-500.0,0.00021917,2]
[358286102,1744896648931,-1105.46,0.00021917,2]
[358286104,1744896648941,-500.0,0.00021917,2]
[358286106,1744896648951,-6539.27,0.00021917,2]
[358286108,1744896648961,-500.0,0.00021917,2]
[358286110,1744896648971,-500.0,0.00021917,2]
[358286112,1744896648980,-500.0,0.00021917,2]
[358286114,1744896648989,-500.0,0.00021917,2]
[358286116,1744896648999,-500.0,0.00021917,2]
[358286118,1744896649008,-500.0,0.00021917,2]
[358286120,1744896649017,-500.19286252,0.00021917,2]
[358286122,1744896649028,-500.0,0.00021917,2]
[358286124,1744896649037,-500.0,0.00021917,2]
[358286126,1744896649047,-500.0,0.00021917,2]
[358286128,1744896649056,-500.0,0.00021917,2]
[358286130,1744896649066,-500.0,0.00021917,2]
[358286132,1744896649076,-500.0,0.00021917,2]
[358286134,1744896649085,-1640.76,0.00021917,2]
[358286136,1744896649095,-738.95,0.00021917,2]
[358286138,1744896649105,-500.0,0.00021917,2]
[358286140,1744896649114,-500.0,0.00021917,2]
[358286142,1744896649125,-1253.23,0.00021917,2]
[358286144,1744896649134,-500.0,0.00021917,2]
[358286146,1744896649143,-500.0,0.00021917,2]
[358286148,1744896649153,-500.0,0.00021917,2]
[358286150,1744896649164,-500.0,0.00021917,2]
[358286152,1744896649173,-500.0,0.00021917,2]
[358286154,1744896649183,-578.18783929,0.00021917,2]
[358286156,1744896649193,-516.1,0.00021917,2]
[358286158,1744896649202,-774.21,0.00021917,2]
[358286160,1744896649211,-775.16,0.00021917,2]
[358286162,1744896649221,-500.0,0.00021917,2]
[358286164,1744896649231,-500.0,0.00021917,2]
[358286166,1744896649241,-5882.85,0.00021917,2]
[358286168,1744896649251,-1243.43,0.00021917,2]
[358286171,1744896649261,-500.0,0.00021917,2]
[358286172,1744896649271,-500.0,0.00021917,2]
[358286175,1744896649281,-832.61,0.00021917,2]
[358286176,1744896649290,-970.3,0.00021917,2]
[358286179,1744896649300,-500.0,0.00021917,2]
[358286181,1744896649314,-582.61,0.00021917,2]
[358286183,1744896649324,-500.0,0.00021917,2]
[358286184,1744896649333,-500.0,0.00021917,2]
[358286186,1744896649343,-885.13,0.00021917,2]
[358286188,1744896649354,-500.0,0.00021917,2]
[358286191,1744896649363,-500.0,0.00021917,2]
[358286193,1744896649374,-500.0,0.00021917,2]
[358286195,1744896649383,-500.0,0.00021917,2]
[358286196,1744896649393,-500.0,0.00021917,2]
[358286199,1744896649403,-500.0,0.00021917,2]
[358286201,1744896649412,-151.0,0.00021917,2]
[358286202,1744896649422,-500.0,0.00021917,2]
[358286205,1744896649431,-500.0,0.00021917,2]
[358286207,1744896649441,-1092.56,0.00021917,2]
[358286209,1744896649450,-500.0,0.00021917,2]
[358286211,1744896649460,-568.95,0.00021917,2]
[358286213,1744896649469,-500.0,0.00021917,2]
[358286215,1744896649479,-500.0,0.00021917,2]
[358286217,1744896649488,-500.0,0.00021917,2]
[358286219,1744896649497,-500.0,0.00021917,2]
[358286221,1744896649507,-151.0,0.00021917,2]
[358286223,1744896649517,-718.32,0.00021917,2]
[358286225,1744896649526,-500.0,0.00021917,2]
[358286227,1744896649536,-500.0,0.00021917,2]
[358286229,1744896649546,-500.0,0.00021917,2]
[358286231,1744896649555,-500.0,0.00021917,2]
[358286234,1744896649575,-500.0,0.00021917,2]
[358286236,1744896649585,-809.58,0.00021917,2]
[358286238,1744896649595,-500.0,0.00021917,2]
[358286240,1744896649606,-500.0,0.00021917,2]
[358286242,1744896649616,-554.52261009,0.00021917,2]
[358286244,1744896649626,-500.0,0.00021917,2]
[358286246,1744896649636,-1389.47,0.00021917,2]
[358286248,1744896649646,-500.0,0.00021917,2]
[358286251,1744896649656,-500.0,0.00021917,2]
[358286253,1744896649665,-427.07420023,0.00021917,2]
[358286255,1744896649675,-1456.99,0.00021917,2]
[358286257,1744896649684,-1562.01,0.00021917,2]
[358286259,1744896649695,-876.52,0.00021917,2]
[358286260,1744896649705,-500.0,0.00021917,2]
[358286261,1744896649714,-500.0,0.00021917,2]
[358286262,1744896649723,-503.37183588,0.00021917,2]
[358286263,1744896649733,-500.0,0.00021917,2]
[358286264,1744896649742,-500.0,0.00021917,2]
[358286265,1744896649752,-500.34252929,0.00021917,2]
[358286266,1744896649762,-782.76,0.00021917,2]
[358286267,1744896649771,-500.0,0.00021917,2]
[358286268,1744896649780,-500.0,0.00021917,2]
[358286269,1744896649790,-500.43453498,0.00021917,2]
[358286271,1744896649799,-500.0,0.00021917,2]
[358286272,1744896649808,-917.81,0.00021917,2]
[358286274,1744896649818,-1869.93,0.00021917,2]
[358286276,1744896649827,-500.0,0.00021917,2]
[358286278,1744896649837,-500.0,0.00021917,2]
[358286280,1744896649846,-500.63906655,0.00021917,2]
[358286282,1744896649858,-567.15,0.00021917,2]
[358286284,1744896649868,-877.04,0.00021917,2]
[358286286,1744896649877,-637.87,0.00021917,2]
[358286288,1744896649886,-579.85,0.00021917,2]
[358286290,1744896649896,-500.0,0.00021917,2]
[358286292,1744896649906,-500.14963304,0.00021917,2]
[358286294,1744896649916,-503.84831033,0.00021917,2]
[358286296,1744896649926,-875.24,0.00021917,2]
[358286298,1744896649936,-500.0,0.00021917,2]
[358286300,1744896649946,-500.0,0.00021917,2]
[358286303,1744896649956,-813.26,0.00021917,2]
[358286305,1744896649965,-1705.23,0.00021917,2]
[358286307,1744896649975,-500.66864332,0.00021917,2]
[358286309,1744896649986,-2494.71,0.00021917,2]
[358286311,1744896649995,-554.74,0.00021917,2]
[358286313,1744896650004,-500.0,0.00021917,2]
[358286315,1744896650014,-500.0,0.00021917,2]
[358286317,1744896650024,-500.0,0.00021917,2]
[358286319,1744896650033,-500.0,0.00021917,2]
[358286321,1744896650043,-500.0,0.00021917,2]
[358286323,1744896650052,-500.0,0.00021917,2]
[358286325,1744896650061,-500.0,0.00021917,2]
[358286327,1744896650071,-503.84421708,0.00021917,2]
[358286329,1744896650081,-500.0,0.00021917,2]
[358286331,1744896650090,-500.0,0.00021917,2]
[358286333,1744896650100,-500.0,0.00021917,2]
[358286335,1744896650111,-500.0,0.00021917,2]
[358286337,1744896650122,-423.99133108,0.00021917,2]
[358286339,1744896650132,-500.0,0.00021917,2]
[358286341,1744896650142,-548.21,0.00021917,2]
[358286343,1744896650152,-500.0,0.00021917,2]
[358286345,1744896650161,-500.0,0.00021917,2]
[358286347,1744896650171,-500.0,0.00021917,2]
[358286349,1744896650181,-2337.68,0.00021917,2]
[358286351,1744896650190,-500.0,0.00021917,2]
[358286353,1744896650200,-500.0,0.00021917,2]
[358286355,1744896650209,-500.0,0.00021917,2]
[358286357,1744896650219,-2113.08,0.00021917,2]
[358286359,1744896650228,-753.52,0.00021917,2]
[358286361,1744896650238,-595.38,0.00021917,2]
[358286363,1744896650247,-500.0,0.00021917,2]
[358286365,1744896650256,-500.0,0.00021917,2]
[358286367,1744896650266,-13266.57,0.00021917,2]
[358286369,1744896650275,-600.77,0.00021917,2]
[358286371,1744896650285,-503.22684933,0.00021917,2]
[358286373,1744896650294,-500.0,0.00021917,2]
[358286375,1744896650306,-500.0,0.00021917,2]
[358286377,1744896650318,-3190.8,0.00021917,2]
[358286379,1744896650327,-500.0,0.00021917,2]
[358286381,1744896650337,-989.78,0.00021917,2]
[358286383,1744896650346,-500.0,0.00021917,2]
[358286385,1744896650357,-500.0,0.00021917,2]
[358286387,1744896650366,-500.0,0.00021917,2]
[358286389,1744896650376,-631.56,0.00021917,2]
[358286391,1744896650386,-500.0,0.00021917,2]
[358286393,1744896650395,-500.0,0.00021917,2]
[358286395,1744896650405,-500.0,0.00021917,2]
[358286397,1744896650414,-500.0,0.00021917,2]
[358286399,1744896650425,-506.2977447,0.00021917,2]
[358286401,1744896650434,-500.97749841,0.00021917,2]
[358286403,1744896650444,-546.2696936,0.00021917,2]
[358286405,1744896650454,-500.0,0.00021917,2]
[358286407,1744896650464,-500.0,0.00021917,2]
[358286409,1744896650474,-500.0,0.00021917,2]
[358286411,1744896650485,-812.31,0.00021917,2]
[358286413,1744896650495,-503.72285048,0.00021917,2]
[358286415,1744896650505,-812.28,0.00021917,2]
[358286417,1744896650515,-500.0,0.00021917,2]
[358286419,1744896650525,-500.0,0.00021917,2]
[358286421,1744896650536,-500.0,0.00021917,2]
[358286423,1744896650545,-500.89749557,0.00021917,2]
[358286426,1744896650555,-1139.59,0.00021917,2]
[358286428,1744896650565,-500.0,0.00021917,2]
[358286430,1744896650575,-500.0,0.00021917,2]
[358286432,1744896650585,-500.0,0.00021917,2]
[358286434,1744896650595,-500.0,0.00021917,2]
[358286436,1744896650605,-500.0,0.00021917,2]
[358286438,1744896650615,-524.62,0.00021917,2]
[358286440,1744896650625,-500.22639504,0.00021917,2]
[358286442,1744896650635,-500.0,0.00021917,2]
[358286444,1744896650644,-500.0,0.00021917,2]
[358286446,1744896650654,-500.0,0.00021917,2]
[358286448,1744896650664,-582.27663822,0.00021917,2]
[358286450,1744896650673,-1608.41,0.00021917,2]
[358286452,1744896650683,-360.28753959,0.00021917,2]
[358286454,1744896650693,-555.93347339,0.00021917,2]
[358286456,1744896650702,-543.11,0.00021917,2]
[358286458,1744896650712,-500.0,0.00021917,2]
[358286460,1744896650722,-500.0,0.00021917,2]
[358286462,1744896650732,-500.21571234,0.00021917,2]
[358286464,1744896650742,-4310.25,0.00021917,2]
[358286466,1744896650751,-507.22,0.00021917,2]
[358286469,1744896650761,-653.28,0.00021917,2]
[358286471,1744896650771,-500.0,0.00021917,2]
[358286473,1744896650781,-500.0,0.00021917,2]
[358286475,1744896650791,-1364.68,0.00021917,2]
[358286477,1744896650801,-500.0,0.00021917,2]
[358286479,1744896650813,-500.0,0.00021917,2]
[358286481,1744896650824,-500.0,0.00021917,2]
[358286484,1744896650835,-500.0,0.00021917,2]
[358286486,1744896650845,-500.0,0.00021917,2]
[358286488,1744896650856,-500.0,0.00021917,2]